Cogmind - Beta 14 @@@ ROGUE MODE // 2025.01.15 @ 16:29:15 Player: SURFACESEEKER Result: Destroyed by H-66 Slayer with Gauss Rifle Performance ------------- Evolutions (1) 500 Regions Visited (5) 1000 Robots Destroyed (34) 170 Value Destroyed (828) 828 Prototype IDs (3) 60 Alien Tech Used (0) 0 Bonus (771) 771 TOTAL SCORE: 3329 Bonus ------- Follower Combat Kills 189 Met Imprinter 300 Was Imprinted 300 Friendly Fire -18 Cogmind --------- Core Integrity 0/400 Matter 275/300 Energy 100/100 System Corruption 13% Temperature Cool (0) Movement Treading (250) Ox1 Location -6/Proximity Caves Parts ------- > --- POWER (1) -------- (None) > --- PROPULSION (4) --- Armored Treads Armored Treads > --- UTILITY (2) ------ High-capacity Storage Unit > --- WEAPON (2) ------- Makeshift Shrapnel Gun KE Penetrator > --- INVENTORY (20) --- Light Nuclear Core Angular Momentum Engine Neutrino Core Improved Treads High-capacity Storage Unit Improved Terrain Scanner Makeshift ECM Suite Advanced ECM Suite Makeshift Hacking Suite Hacking Drone Bay (1/1) Makeshift Laser Precision Grenade Launcher Precision Grenade Launcher Mining Laser Ripper Makeshift Spear Self-destruct Interrupter (50) GAL Module Peak State ------------ > --- POWER ------------ Neutrino Core > --- PROPULSION ------- Aluminum Leg Aluminum Leg Makeshift Leg Flexi-carbon Leg > --- UTILITY ---------- High-capacity Storage Unit Makeshift ECM Suite > --- WEAPON ----------- Makeshift Laser Heavy Battle Rifle > --- INVENTORY -------- Light Ion Engine Light Nuclear Core Light Angular Momentum Engine Armored Treads High-capacity Storage Unit Improved Terrain Scanner Melee Analysis Suite Advanced ECM Suite Makeshift Hacking Suite Hacking Drone Bay Makeshift Shrapnel Gun Slug Cannon Precision Grenade Launcher Precision Grenade Launcher Mining Laser Ripper Makeshift Spear Self-destruct Interrupter Self-destruct Interrupter GAL Module [Rating: 37] Favorites ----------- Power Light Ion Engine Engine Light Ion Engine Power Core Neutrino Core Propulsion Aluminum Leg Treads Armored Treads Leg Aluminum Leg Wheel Wheel Utility High-capacity Storage Unit Device Improved Terrain Scanner Storage High-capacity Storage Unit Processor Melee Analysis Suite Weapon Particle Gun Energy Gun Particle Gun Ballistic Gun Heavy Assault Rifle Ballistic Cannon Slug Cannon Launcher Precision Grenade Launcher Slashing Weapon Mining Claw Piercing Weapon Makeshift Spear Build | -11 -10 -9 -9 -7 -6 ------- Run | Yrd Mat Mat Min Zio Pro Slots Evolved 2 | . . 2 . . . Power . | . . . . . . Propulsion 2 | . . 2 . . . Utility . | . . . . . . Weapon . | . . . . . . Parts Attached 48 | 8 5 3 5 6 21 Power 7 | 2 1 . 1 . 3 Engine 6 | 2 1 . 1 . 2 Core 1 | . . . . . 1 Reactor . | . . . . . . Propulsion 18 | 3 1 3 3 1 7 Treads 6 | . . . . . 6 Leg 5 | . . . 3 1 1 Wheel 7 | 3 1 3 . . . Hover . | . . . . . . Flight . | . . . . . . Utility 6 | 1 1 . . 2 2 Device 3 | . 1 . . 1 1 Storage 2 | 1 . . . 1 . Processor 1 | . . . . . 1 Hackware . | . . . . . . Protection . | . . . . . . Artifact . | . . . . . . Weapon 17 | 2 2 . 1 3 9 Energy Gun 5 | 1 1 . . 2 1 Energy Cannon . | . . . . . . Ballistic Gun 6 | 1 . . 1 . 4 Ballistic Cannon 1 | . . . . . 1 Launcher 2 | . . . . 1 1 Special Weapon . | . . . . . . Impact Weapon . | . . . . . . Slashing Weapon 2 | . 1 . . . 1 Piercing Weapon 1 | . . . . . 1 Special Melee Weapon . | . . . . . . Unidentified Prototypes 3 | . . . . 3 . Parts Lost 13 | . . 1 3 . 9 Power 3 | . . . 1 . 2 Propulsion 7 | . . 1 2 . 4 Utility 1 | . . . . . 1 Weapon 2 | . . . . . 2 Highest Loss Streak 5 | . . 1 2 . 5 To Critical Strikes . | . . . . . . Average Slot Usage (%) 90 | . 99 95 86 90 88 Engine 10 | . 14 11 9 11 5 Treads 1 | . . . . . 13 Leg 32 | . . . 10 40 23 Wheel 4 | . 28 39 22 . . Device 7 | . 13 11 11 5 8 Storage 11 | . 14 11 11 11 11 Energy Gun 13 | . 14 11 11 15 6 Ballistic Gun 5 | . 9 . 7 5 7 Slashing Weapon 1 | . 4 11 3 . 2 Peak Build Rating 37 | 7 10 13 13 28 37 Average Rating 19 | 5 9 11 11 20 31 On Entrance 11 | . 7 10 13 13 27 Naked Turns . | . . . . . . Heaviest Build 70 | 13 16 14 15 51 70 Greatest Support 88 | 26 20 46 36 50 88 Greatest Overweight (x) 3 | 3 . . 1 1 3 Average Overweight (x) . | . . . . . . Largest Inventory Capacity 20 | 8 8 8 8 20 20 Average Capacity 17 | 7 8 8 8 19 20 Most Carried 20 | 8 8 8 8 20 20 Average Carried 13 | 4 7 6 7 14 18 Final Capacity 20 | 8 8 8 8 20 20 Final Carried 20 | 8 8 8 8 20 18 Class Distribution -------------------- 83% | Scavenger-Mutant 16% | Mutant Dominant Class ---------------- Mutant | -10/Materials Scavenger-Mutant | -9/Materials Scavenger-Mutant | -9/Mines Scavenger-Mutant | -7/Zion Mutant | -6/Proximity Caves Resources | -11 -10 -9 -9 -7 -6 ----------- Run | Yrd Mat Mat Min Zio Pro Matter Collected 968 | 164 50 153 164 50 387 Remotely . | . . . . . . Salvage Created 1179 | 81 162 201 319 . 416 Parts 71 | 16 8 22 17 . 8 Haulers Intercepted . | . . . . . . Recyclers Shooed 3 | 1 . . 2 . . Parts Field Recycled . | . . . . . . Retrieved Matter . | . . . . . . Parts Self-Destructed 11 | . . . . 1 10 Prevented 11 | . . . . . 11 Kills | -11 -10 -9 -9 -7 -6 ------- Run | Yrd Mat Mat Min Zio Pro Combat Hostiles Destroyed 22 | . 3 4 7 . 8 Melee 10 | . 1 4 2 . 3 Guns 12 | . 2 . 5 . 5 Classes Destroyed 8 | 1 2 3 . . 2 Tunneler 8 | 5 . 2 1 . . Recycler 3 | . . 1 2 . . Watcher 1 | . 1 . . . . Swarmer 8 | . . 3 5 . . Grunt 9 | . 3 . 2 . 4 Brawler 3 | . . . . . 3 Protector 1 | . . . . . 1 Sentry 1 | . . 1 . . . Best Kill Streak 6 | 2 2 6 4 . 3 Combat Bots Only 4 | . 2 4 4 . 3 Max Kills in Single Turn 1 | 1 1 1 1 . 1 Gunslinging . | . . . . . . Exploded . | . . . . . . Melee 1 | . 1 1 1 . 1 Uniques/NPCs Destroyed . | . . . . . . Combat | -11 -10 -9 -9 -7 -6 -------- Run | Yrd Mat Mat Min Zio Pro Hostile Shots Fired 246 | . 26 32 31 . 157 Missed 79 | . 6 13 8 . 52 Damage Taken 2759 | . 282 184 190 . 2103 Core 469 | . 51 25 72 . 321 Absorbed by Shields . | . . . . . . Regen/Repaired (Parts) 186 | . . . . 186 . Core Remaining (%) 89 | 100 79 . . . . Volleys Fired 101 | 12 14 10 25 . 40 Largest 2 | 2 2 1 2 . 2 Hottest 88 | 60 60 65 88 . 83 Shots Fired 174 | 24 28 10 46 . 66 Gun 160 | 24 28 10 46 . 52 Cannon 13 | . . . . . 13 Launcher 1 | . . . . . 1 Special . | . . . . . . Kinetic 100 | 12 14 . 21 . 53 Thermal 73 | 12 14 10 25 . 12 Explosive 1 | . . . . . 1 Electromagnetic . | . . . . . . Robot Hit Streak 6 | 6 5 5 5 . 4 Robot Miss Streak 5 | 3 3 1 4 . 5 Penetration Max . | . . . . . . Secondary Targets 1 | . 1 . . . . Max Gunslinging Chain 1 | . 1 . . . . Shots Hit Robots 115 | 14 20 11 23 . 47 Core Hits 49 | 6 7 7 11 . 18 Critical Kills 1 | . . . . . 1 Critical Parts Destroyed 1 | . . . . . 1 Critical Strikes 3 | . . . . . 3 Destroy 2 | . . . . . 2 Sever 1 | . . . . . 1 Melee Attacks 27 | . 3 11 3 . 10 Impact . | . . . . . . Slashing 19 | . 3 11 3 . 2 Piercing 8 | . . . . . 8 Sneak Attacks 4 | . . 3 1 . . Combat Hostiles 1 | . . . 1 . . Follow-up Attacks 1 | . . . . . 1 Damage Inflicted 2317 | 175 259 303 404 . 1176 Guns 1436 | 175 215 49 309 . 688 Cannons 136 | . . . . . 136 Explosions 108 | . . . . . 108 Melee 637 | . 44 254 95 . 244 Ramming . | . . . . . . Kinetic 1032 | 97 103 . 115 . 717 Thermal 540 | 78 112 49 194 . 107 Explosive 108 | . . . . . 108 Electromagnetic . | . . . . . . Impact . | . . . . . . Slashing 422 | . 44 254 95 . 29 Piercing 215 | . . . . . 215 Highest Corruption 13 | . . . . . 13 Average Corruption 6 | . . . . . 6 Corruption Purged . | . . . . . . Corruption Blocked . | . . . . . . Effects 11 | . . . . . 11 Matter Fused 2 | . . . . . 2 Energy Discharges 3 | . . . . . 3 Parts Rejected 1 | . . . . . 1 Data Loss (minor) 1 | . . . . . 1 Data Loss (major) 1 | . . . . . 1 Alerts 1 | . . . . . 1 Weapon Failures 2 | . . . . . 2 Overload Shots . | . . . . . . Overflow Damage 34 | . . 8 10 . 16 Projectiles . | . . . . . . Explosions . | . . . . . . Melee 34 | . . 8 10 . 16 Knockbacks 1 | . . . . . 1 Impact . | . . . . . . Kinetic 1 | . . . . . 1 Secondary . | . . . . . . Self-Inflicted Damage . | . . . . . . Shots . | . . . . . . Rammed . | . . . . . . Targets Rammed . | . . . . . . Kicked . | . . . . . . Crushed . | . . . . . . Highest Temperature 243 | . 105 59 136 . 243 Average Temperature 51 | . 37 19 44 . 66 Received Heat Transfer 885 | . 153 42 33 . 657 Siege Activations . | . . . . . . Robots Corrupted . | . . . . . . Combat Hostiles . | . . . . . . Parts Fried . | . . . . . . Impact Corruptions . | . . . . . . Robots Melted . | . . . . . . Combat Hostiles . | . . . . . . Parts Melted . | . . . . . . Heat Transferred 1202 | 175 250 111 444 . 222 Parts Sabotaged . | . . . . . . Parts Stolen . | . . . . . . Parts Stripped . | . . . . . . Power Chain Reactions . | . . . . . . Alert | -11 -10 -9 -9 -7 -6 ------- Run | Yrd Mat Mat Min Zio Pro Peak Influence 323 | 25 118 279 323 . . Initial 108 | . 16 49 108 . . Average 120 | 11 63 161 226 . . Maximum Alert Level 1 | . . 1 1 . . Low Security (%) 74 | 100 100 61 39 . . Level 1 25 | . . 38 60 . . Level 2 . | . . . . . . Level 3 . | . . . . . . Level 4 . | . . . . . . Level 5 . | . . . . . . High Security . | . . . . . . Max Security . | . . . . . . Squads Dispatched 2 | . 1 . . . 1 Investigation 1 | . 1 . . . . Extermination . | . . . . . . Reinforcement . | . . . . . . Assault 1 | . . . . . 1 Garrison . | . . . . . . Intercept . | . . . . . . Searches Triggered . | . . . . . . Construction Impeded . | . . . . . . Haulers Reinforced . | . . . . . . Active Scanning Responses . | . . . . . . Cargo Convoy Interrupts . | . . . . . . Stealth | -11 -10 -9 -9 -7 -6 --------- Run | Yrd Mat Mat Min Zio Pro Distress Signals 5 | . 1 4 . . . Communications Jammed . | . . . . . . Distress Signals . | . . . . . . Times Spotted 48 | . 4 13 10 . 21 Peak Tracking Total 9 | . 4 9 4 . 9 Tactical Retreats 8 | . . 2 1 . 5 Traps | -11 -10 -9 -9 -7 -6 ------- Run | Yrd Mat Mat Min Zio Pro Traps Triggered 1 | . 1 . . . . Indirectly . | . . . . . . Trap Hack Attempts . | . . . . . . Triggered . | . . . . . . Disarmed . | . . . . . . Reprogrammed . | . . . . . . Reused . | . . . . . . Traps Extracted . | . . . . . . Installed . | . . . . . . Triggered . | . . . . . . Machines | -11 -10 -9 -9 -7 -6 ---------- Run | Yrd Mat Mat Min Zio Pro Machines Disabled 2 | . . 2 . . . Max in Single Turn 1 | . . 1 . . . Machines Repaired . | . . . . . . Machines Dismantled . | . . . . . . Machines Sabotaged . | . . . . . . Overloaded Fab Kills . | . . . . . . Hacking | -11 -10 -9 -9 -7 -6 --------- Run | Yrd Mat Mat Min Zio Pro Machines Accessed 3 | . 1 2 . . . Terminals 3 | . 1 2 . . . Fabricators . | . . . . . . Repair Stations . | . . . . . . Recycling Units . | . . . . . . Scanalyzers . | . . . . . . Garrison Access . | . . . . . . Total Hacks 5 | . 2 3 . . . Successful 1 | . . 1 . . . Failed 4 | . 2 2 . . . Catastrophic 2 | . . 2 . . . Database Lockouts . | . . . . . . Manual 3 | . . 2 . 1 . Terminals 5 | . 2 3 . . . Fabricators . | . . . . . . Repair Stations . | . . . . . . Recycling Units . | . . . . . . Scanalyzers . | . . . . . . Garrison Access . | . . . . . . Terminal Hacks 1 | . . 1 . . . Zone Layout 1 | . . 1 . . . Fabricator Hacks . | . . . . . . Repair Station Hacks . | . . . . . . Recycling Unit Hacks . | . . . . . . Scanalyzer . | . . . . . . Garrison Access Hacks . | . . . . . . Unauthorized Hacks . | . . . . . . Terminals . | . . . . . . Fabricators . | . . . . . . Repair Stations . | . . . . . . Recycling Units . | . . . . . . Scanalyzers . | . . . . . . Garrison Access . | . . . . . . Data Cores Recovered . | . . . . . . Used . | . . . . . . Hacking Detections 2 | . 1 1 . . . Full Trace Events . | . . . . . . Feedback Events . | . . . . . . Feedback Blocked . | . . . . . . Robot Schematics Acquired . | . . . . . . Robots Built . | . . . . . . Authchips . | . . . . . . Time . | . . . . . . Total Robot Build Rating . | . . . . . . Part Schematics Acquired . | . . . . . . Parts Built . | . . . . . . Authchips . | . . . . . . Time . | . . . . . . Total Part Build Rating . | . . . . . . Parts Repaired . | . . . . . . Time . | . . . . . . Parts Recycled . | . . . . . . Recycled Matter . | . . . . . . Retrieved Matter . | . . . . . . Retrieved Components . | . . . . . . Parts Scanalyzed . | . . . . . . Part Schematics Acquired . | . . . . . . Parts Damaged . | . . . . . . Bothacking | -11 -10 -9 -9 -7 -6 ------------ Run | Yrd Mat Mat Min Zio Pro Used RIF Installer . | . . . . . . Robots Hacked . | . . . . . . Non-combat . | . . . . . . Combat . | . . . . . . Robot Hacks Applied . | . . . . . . Relay Couplers Released . | . . . . . . Fabnet Peak Effective % . | . . . . . . Robots Rewired 1 | . . . . . 1 Allies Hacked . | . . . . . . Hacks Repelled . | . . . . . . Allies | -11 -10 -9 -9 -7 -6 -------- Run | Yrd Mat Mat Min Zio Pro Total Allies 5 | . . . . 4 1 Largest Group 4 | . . . . 4 4 Highest-Rated Group 154 | . . . . 154 154 Highest-Rated Ally 41 | . . . . 41 41 Total Orders . | . . . . . . Ally Attacks 55 | . . . . . 55 Total Damage 603 | . . . . . 603 Kills 6 | . . . . . 6 Allies Corrupted . | . . . . . . Allies Melted . | . . . . . . Intel | -11 -10 -9 -9 -7 -6 ------- Run | Yrd Mat Mat Min Zio Pro Robot Analysis Total . | . . . . . . Derelict Logs Recovered 3 | . . . 1 2 . Drone Launches . | . . . . . . Drone Recoveries . | . . . . . . Exploration | -11 -10 -9 -9 -7 -6 ------------- Run | Yrd Mat Mat Min Zio Pro Turns Passed 4733 | 183 211 299 185 3206 649 Spaces Moved 3161 | 144 173 292 96 2224 232 Core 11 | 11 . . . . . Treads 85 | . . . . . 85 Legs 2403 | . . . 32 2224 147 Wheels 662 | 133 173 292 64 . . Hover . | . . . . . . Flight . | . . . . . . Fastest Speed 50 | 50 80 80 86 120 166 Average Speed 134 | 88 80 80 100 142 206 Slowest Speed 410 | 200 80 85 190 190 410 Overloaded Moves . | . . . . . . Propulsion Burnouts . | . . . . . . Robots Hopped 1 | . . . . 1 . Cave-ins Triggered . | . . . . . . Exploration Rate (%) 32 | 5 38 29 12 90 19 Regions Visited 5 Branch Regions 3 Pre-discovered Areas 3 | . . . 1 2 . Known Exits Taken . | . . . . . . Unknown Exits Taken 5 | 1 1 1 1 1 . Scrap Searched 5 | . . . . 4 1 Spaces Dug . | . . . . . . Terrain Destroyed 18 | . . . . . 18 Melee . | . . . . . . Projectile 9 | . . . . . 9 AOE 8 | . . . . . 8 Terrain Rammed . | . . . . . . Walls Destroyed . | . . . . . . Machines Disabled . | . . . . . . Actions | -11 -10 -9 -9 -7 -6 --------- Run | Yrd Mat Mat Min Zio Pro Total 3415 | 171 211 323 132 2259 319 Wait 21 | . 9 6 1 4 1 Move 3154 | 143 172 291 95 2221 232 Hop 1 | . . . . 1 . Pick Up 39 | 7 4 2 1 18 7 Fast Attach 18 | 6 1 1 3 2 5 Attach 10 | . 1 2 1 1 5 Detach 1 | . . . . 1 . Swap 20 | 2 3 . 1 3 11 Drop 22 | 1 4 . 2 8 7 Fire 101 | 12 14 10 25 . 40 Melee 26 | . 3 11 3 . 9 Ram . | . . . . . . Kick . | . . . . . . Crush . | . . . . . . Escape Stasis . | . . . . . . Rewire 2 | . . . . . 2 Trap . | . . . . . . Miscellaneous . | . . . . . . Route ------- -11/Scrapyard -10/Materials -9/Materials -9/Mines -7/Zion (discovered 2 exits: Dee / [*Pro]) -6/Proximity Caves History --------- Turn | Location | Event 27 | -11/Scrapyard | Discovered new exit (range 16) 184 | -11/Scrapyard | Entered Materials 287 | -10/Materials | Discovered new exit (range 8) 306 | -10/Materials | Build established: Mutant 395 | -10/Materials | Entered another Materials area 395 | -9/Materials | Evolved 2 slots: Propulsion x2 607 | -9/Materials | Build established: Scavenger-Mutant 672 | -9/Materials | Discovered new exit (range 11) 694 | -9/Materials | Entered Mines 721 | -9/Mines | Learned location of Zion (-7) 808 | -9/Mines | A Derelict revealed a hidden shortcut to a safe place 879 | -9/Mines | Entered Zion 907 | -7/Zion | Given the Hacking Drone Bay 914 | -7/Zion | Found Prototype Device 993 | -7/Zion | Given A8's code to call for help 1397 | -7/Zion | Received a visual enhancement algorithm 1453 | -7/Zion | Learned Factory non-interactive machine intel 2021 | -7/Zion | Learned location of Warlord (-5) 2157 | -7/Zion | Learned location of Quarantine (-3) 2161 | -7/Zion | Visited the Megawrench Repair Shop 2161 | -7/Zion | Megawrench repaired 7 parts 2242 | -7/Zion | Found GAL Module 2314 | -7/Zion | Identified exit to Deep Caves 2342 | -7/Zion | Met Imprinter 2585 | -7/Zion | Identified Hacking Drone Bay 3471 | -7/Zion | Imprinted 3474 | -7/Zion | Declared Zion's savior 3888 | -7/Zion | Discovered new exit (range 14) 4085 | -7/Zion | Entered Proximity Caves 4085 | -6/Proximity Caves | Accompanied by 4 allies 4281 | -6/Proximity Caves | Attracted the attention of an 0b10 outpost 4336 | -6/Proximity Caves | Lost 4 allies 4528 | -6/Proximity Caves | Core integrity fell below 50% 4568 | -6/Proximity Caves | System corruption reached 10% 4588 | -6/Proximity Caves | Core integrity fell below 20% 4606 | -6/Proximity Caves | Lost 5 parts (1p2n1u1w) 4734 | -6/Proximity Caves | Destroyed by H-66 Slayer with Gauss Rifle Last Messages --------------- 04704_ Acquired Imp. Treads. 04707_ Acquired KE Penetrator. 04708_ Acquired 90 matter. 04712_ C-30 ARC bursts open, deploying its payload. 04713_ Slug penetrates Wall. 04716_ Slug penetrates Soldier 5a. 04719_ Soldier 5a suffers critical hit (Destroy). 04719_ Soldier 5a destroyed. 04721_ System corrupted: Mak. Shrapnel Gun jammed. 04721_ Slug penetrates Wall. 04722_ Penetrated by Slug. 04725_ Wall collapses. 04726_ System corrupted: Energy discharge (-99). 04726_ Penetrated by Slug. 04726_ Slug penetrates Wall. 04733_ Slug penetrates Machine. 04733_ Machine disabled. 04733_ Penetrated by Slug. 04733_ Angular Momentum Engine destroyed. 04734_ Slug penetrates Wall. Map ----- +----------------------------------------------------+ | | | | | | | | | | | | | | | ?????????????????????????????????????????????????? | | ?????????????????????????????????????????????????? | | ?????????????????????????????????????????????????? | | ?????????????????????????????????????????????????? | | ?????????????????????????????????????????????????? | | ?????????????????????????????????????????????????? | | ?????????????????????????????????????????????????? | | ?????????????????????????????????????????????????? | | ?????????????????????????????????????????????????? | | ?????????????????????????????????????????????????? | | ?????????????????????????????????????????????????? | | ?????????????????????????????????????????????????? | | ?????????????????????????????????????????????????? | | ?????????????????????????????????????????????????? | | ?????????????????????############????????????????? | | ??????????????????#### =#????########????? | | ?????????????????## ### ### #???# ???? | | ????????????????## # "# #??# ??? | | ???????????????## # @ "# ### ??? | | ??????????????## ## # "# ??? | | ??????????????# ### ## "#% ??? | | ??????????????# #?# ! # "# % ??? | | ?????? ?????## #?# [h# """""# ## ???? | | ??????? ???## ## *%;####### #??????? | | ?????? ### =h % #??????? | | #?????? #### ##??????? | | ###???? [ ##??? ##" ##???????? | | ##??? !%##???? ##?#"#????????? | | #??? ! "%[#????? ##???##????????? | | #???? #### %/ " #?????##??????????????? | | ##?????????####!!* #?????????????????????? | | #???????????? =!% #?????????????????????? | | #???????????# = % ##?????????????????????? | | #???????????# * #??????????????????????? | | ###?????????# % ="# #???????????????????? | | ##????????## %[%* ## ##???????????????????? | | #????????# ! %% ?# ##????????????????????? | | ##???????#% #?## ##?????????????????????? | | ##??????#!% ""##??###??????????????????????? | | #??????# #"#?????????????????????????????? | | #???#### ##?????????????????????????????? | | ## ##???# #?????????????????????????????? | | ##?###????## ######## ??????????????????? | +----------------------------------------------------+ Best States ------------- Heat Dissipation 28 Energy Generation 19 Energy Capacity 315 Matter Stores 300 Matter Capacity 300 Sight Range 16 Terrain Scan Range 16 Terrain Scan Density 10 ECM Strength 2 Evasion (%) 55 Recoil Reduction 4 Item Schematics ----------------- None Robot Schematics ------------------ None Fabricated ------------ Nothing Alien Tech Used ----------------- None Achievements -------------- None Challenges ------------ None Game ------ Seed CoilNodeEngine Manual? 0 Play Time 00:46:57 Cumulative 198.3 hours Start 2025.01.14 @ 16:41:44 End 2025.01.15 @ 16:29:15 Sessions 3 Manual Loads 0 Difficulty Rogue Special Mode None Game No. 149 Rogue 149 Adventurer 0 Explorer 0 Win Type - Total 0 Types 0/0/0/0/0/0/0/0/0 Lore% 27 Gallery% 53 Achievement% 44 Wizard Run 0 Options --------- Layout 1 ASCII 0 Keyboard 0 Movement Arrows Keybinds 0 Fullscreen 1 Font 24/Smallcaps Map View 76x35 Zoom Use 0% Tactical HUD 1 Map Filters NONE Filters NONE Steam 1 RUN: 1c7c58fe-48a9-4585-a72b-47a45a647706